[Event "Betsys MČR v online bleskovém šachu 2021"]
[Site "Chess.com"]
[Date "2021.04.17"]
[Round "10"]
[White "matyson523"]
[Black "Cenisuh"]
[Result "1-0"]
[WhiteElo "1814"]
[BlackElo "1607"]
[TimeControl "180+1"]
[EndTime "10:40:06 PDT"]
[Termination "Uživatel matyson523 zvítězil na čas"]

1. e4 {[%clk 0:03:00.9]} 1... e5 {[%clk 0:03:00]} 2. Nf3 {[%clk 0:03:00.1]} 2...
Nc6 {[%clk 0:03:00.6]} 3. d4 {[%clk 0:03:00.1]} 3... exd4 {[%clk 0:02:59.5]} 4.
Bc4 {[%clk 0:02:59.7]} 4... Nf6 {[%clk 0:02:46.6]} 5. e5 {[%clk 0:02:57.9]} 5...
Qe7 {[%clk 0:02:41.2]} 6. O-O {[%clk 0:02:56.3]} 6... Nxe5 {[%clk 0:02:05.9]} 7.
Nxe5 {[%clk 0:02:54.8]} 7... Qxe5 {[%clk 0:02:05.1]} 8. Re1 {[%clk 0:02:54.8]}
8... Ne4 {[%clk 0:02:05.7]} 9. f3 {[%clk 0:02:48.9]} 9... d5 {[%clk 0:02:05.6]}
10. Bd3 {[%clk 0:02:46.6]} 10... Bd6 {[%clk 0:01:58.1]} 11. g3 {[%clk
0:02:40.9]} 11... Bf5 {[%clk 0:01:47.5]} 12. Bf4 {[%clk 0:02:38.1]} 12... Qf6
{[%clk 0:01:39.3]} 13. fxe4 {[%clk 0:02:34.8]} 13... dxe4 {[%clk 0:01:36.4]} 14.
Bxe4 {[%clk 0:02:33.4]} 14... O-O-O {[%clk 0:01:26.7]} 15. Bxf5+ {[%clk
0:02:26.3]} 15... Qxf5 {[%clk 0:01:24.8]} 16. Qd3 {[%clk 0:02:20.2]} 16... Qd5
{[%clk 0:01:11.2]} 17. Qe4 {[%clk 0:02:11.2]} 17... Qa5 {[%clk 0:01:03.6]} 18.
Na3 {[%clk 0:01:56]} 18... Bc5 {[%clk 0:00:55.3]} 19. Kh1 {[%clk 0:01:48.9]}
19... a6 {[%clk 0:00:42.7]} 20. Rad1 {[%clk 0:01:29.8]} 20... Rhe8 {[%clk
0:00:36.2]} 21. Qxe8 {[%clk 0:01:27.7]} 21... Rxe8 {[%clk 0:00:36.3]} 22. Rxe8+
{[%clk 0:01:27.7]} 22... Kd7 {[%clk 0:00:36.3]} 23. Rde1 {[%clk 0:01:27.1]}
23... Qa4 {[%clk 0:00:21.7]} 24. R8e2 {[%clk 0:01:16.6]} 24... Qc6+ {[%clk
0:00:21.5]} 25. Rg2 {[%clk 0:01:11.7]} 25... f6 {[%clk 0:00:14.9]} 26. Nc4
{[%clk 0:01:07.4]} 26... g5 {[%clk 0:00:12.5]} 27. Bd2 {[%clk 0:01:05]} 27... b5
{[%clk 0:00:10.9]} 28. Na3 {[%clk 0:01:02.8]} 28... Bb6 {[%clk 0:00:08.6]} 29.
h3 {[%clk 0:01:00]} 29... a5 {[%clk 0:00:06.3]} 30. c3 {[%clk 0:00:56.1]} 30...
b4 {[%clk 0:00:02.8]} 31. cxb4 {[%clk 0:00:54.2]} 31... axb4 {[%clk 0:00:03]}
32. Bxb4 {[%clk 0:00:48.8]} 32... Qa4 {[%clk 0:00:02.2]} 33. Bd2 {[%clk
0:00:46.9]} 1-0

[Event "Betsys MČR v online bleskovém šachu 2021"]
[Site "Chess.com"]
[Date "2021.04.17"]
[Round "10"]
[White "SayQueen"]
[Black "mravecuk"]
[Result "0-1"]
[WhiteElo "2013"]
[BlackElo "2240"]
[TimeControl "180+1"]
[EndTime "10:40:07 PDT"]
[Termination "Uživatel mravecuk zvítězil po vzdání soupeře"]

1. e4 {[%clk 0:02:56.8]} 1... e6 {[%clk 0:02:56.4]} 2. d4 {[%clk 0:02:55.8]}
2... d5 {[%clk 0:02:56.9]} 3. exd5 {[%clk 0:02:55.4]} 3... exd5 {[%clk
0:02:57.8]} 4. c4 {[%clk 0:02:55.3]} 4... Nf6 {[%clk 0:02:57.8]} 5. Nc3 {[%clk
0:02:53.9]} 5... Bb4 {[%clk 0:02:57.7]} 6. cxd5 {[%clk 0:02:51.1]} 6... O-O
{[%clk 0:02:56.1]} 7. Nf3 {[%clk 0:02:44.3]} 7... Nxd5 {[%clk 0:02:55.5]} 8. Bd2
{[%clk 0:02:44]} 8... Re8+ {[%clk 0:02:50.9]} 9. Be2 {[%clk 0:02:43.3]} 9... c5
{[%clk 0:02:29.6]} 10. O-O {[%clk 0:02:39.4]} 10... cxd4 {[%clk 0:02:03]} 11.
Nxd4 {[%clk 0:02:38.2]} 11... Nxc3 {[%clk 0:01:59.6]} 12. bxc3 {[%clk
0:02:36.2]} 12... Bc5 {[%clk 0:01:59.2]} 13. Be3 {[%clk 0:02:32.3]} 13... Bb6
{[%clk 0:01:42.2]} 14. Bc4 {[%clk 0:02:26.5]} 14... Nc6 {[%clk 0:01:38.7]} 15.
Qh5 {[%clk 0:02:12.7]} 15... Ne5 {[%clk 0:01:33.9]} 16. Bb3 {[%clk 0:02:06.3]}
16... Bg4 {[%clk 0:01:28.3]} 17. Qg5 {[%clk 0:01:33.3]} 17... Qxg5 {[%clk
0:01:22.6]} 18. Bxg5 {[%clk 0:01:32.7]} 18... Rac8 {[%clk 0:01:15.9]} 19. h3
{[%clk 0:01:29.4]} 19... Bd7 {[%clk 0:01:08.5]} 20. Rad1 {[%clk 0:01:13.6]}
20... Nc4 {[%clk 0:00:53.5]} 21. Nf3 {[%clk 0:01:04.8]} 21... Be6 {[%clk
0:00:48.9]} 22. Rfe1 {[%clk 0:00:55.3]} 22... h6 {[%clk 0:00:43.7]} 23. Bf4
{[%clk 0:00:51.4]} 23... Nb2 {[%clk 0:00:39.2]} 24. Rd6 {[%clk 0:00:44.7]} 24...
Nc4 {[%clk 0:00:26]} 25. Bxc4 {[%clk 0:00:42]} 25... Bxc4 {[%clk 0:00:23.4]} 26.
Rxe8+ {[%clk 0:00:38.9]} 26... Rxe8 {[%clk 0:00:24.2]} 27. Rd7 {[%clk
0:00:37.8]} 27... Re2 {[%clk 0:00:18.1]} 28. Bg3 {[%clk 0:00:37.1]} 28... Rxa2
{[%clk 0:00:17.5]} 29. Rxb7 {[%clk 0:00:36.7]} 29... Bd5 {[%clk 0:00:15.4]} 30.
Ne5 {[%clk 0:00:33.8]} 30... Bxb7 {[%clk 0:00:14.4]} 0-1

[Event "Betsys MČR v online bleskovém šachu 2021"]
[Site "Chess.com"]
[Date "2021.04.17"]
[Round "10"]
[White "SanyH"]
[Black "zarathutra"]
[Result "0-1"]
[WhiteElo "1598"]
[BlackElo "1806"]
[TimeControl "180+1"]
[EndTime "10:40:11 PDT"]
[Termination "Uživatel zarathutra zvítězil po vzdání soupeře"]

1. e4 {[%clk 0:03:00.9]} 1... e5 {[%clk 0:02:59.3]} 2. f4 {[%clk 0:03:00.4]}
2... exf4 {[%clk 0:02:58.7]} 3. Nf3 {[%clk 0:02:59.9]} 3... d6 {[%clk
0:02:59.1]} 4. Bc4 {[%clk 0:02:59.1]} 4... h6 {[%clk 0:02:58.4]} 5. O-O {[%clk
0:02:58.2]} 5... g5 {[%clk 0:02:57.7]} 6. d4 {[%clk 0:02:55.9]} 6... Bg7 {[%clk
0:02:57.7]} 7. c3 {[%clk 0:02:52]} 7... Nc6 {[%clk 0:02:57.8]} 8. Nbd2 {[%clk
0:02:47.4]} 8... Nf6 {[%clk 0:02:54.6]} 9. a3 {[%clk 0:02:38]} 9... O-O {[%clk
0:02:53.9]} 10. Qc2 {[%clk 0:02:26.9]} 10... a6 {[%clk 0:02:43.4]} 11. b4 {[%clk
0:02:13]} 11... b5 {[%clk 0:02:42.7]} 12. Bd3 {[%clk 0:02:08.7]} 12... Nd7
{[%clk 0:02:33.9]} 13. Bb2 {[%clk 0:02:05.3]} 13... Nb6 {[%clk 0:02:17.6]} 14.
Rae1 {[%clk 0:02:02.5]} 14... f6 {[%clk 0:02:12.7]} 15. Qb3+ {[%clk 0:01:36.5]}
15... Kh8 {[%clk 0:02:10.8]} 16. Qc2 {[%clk 0:01:35.8]} 16... d5 {[%clk
0:02:09.3]} 17. e5 {[%clk 0:01:32.9]} 17... fxe5 {[%clk 0:02:08.9]} 18. Nxe5
{[%clk 0:01:29.2]} 18... Nxe5 {[%clk 0:02:08]} 19. dxe5 {[%clk 0:01:28.8]} 19...
Nc4 {[%clk 0:01:48.2]} 20. Nxc4 {[%clk 0:01:24.4]} 20... dxc4 {[%clk 0:01:48.4]}
21. Bh7 {[%clk 0:01:12]} 21... c5 {[%clk 0:01:38.5]} 22. bxc5 {[%clk 0:01:04.7]}
22... Qe7 {[%clk 0:01:38.2]} 23. Qe4 {[%clk 0:00:57.7]} 23... Bb7 {[%clk
0:01:35.1]} 24. Qd4 {[%clk 0:00:51.2]} 24... Kxh7 {[%clk 0:01:32]} 25. Kh1
{[%clk 0:00:43.5]} 25... Rad8 {[%clk 0:01:24.3]} 26. Qf2 {[%clk 0:00:35]} 26...
Rd5 {[%clk 0:01:18.6]} 27. Qc2+ {[%clk 0:00:26.6]} 27... Kh8 {[%clk 0:01:18.1]}
28. Qg6 {[%clk 0:00:23.9]} 28... Qxc5 {[%clk 0:01:10.8]} 29. Rf3 {[%clk
0:00:19.7]} 29... Rxe5 {[%clk 0:01:08.8]} 30. Rxe5 {[%clk 0:00:17.8]} 30... Qxe5
{[%clk 0:01:09.7]} 31. Rf1 {[%clk 0:00:16.4]} 31... Qe2 {[%clk 0:01:08.6]} 32.
Rg1 {[%clk 0:00:14.4]} 32... Qxb2 {[%clk 0:01:08.6]} 33. h3 {[%clk 0:00:13.4]}
33... Qxc3 {[%clk 0:01:06.1]} 34. h4 {[%clk 0:00:12.8]} 34... Qf6 {[%clk
0:01:05.5]} 35. Qh5 {[%clk 0:00:11.2]} 35... f3 {[%clk 0:00:57.9]} 36. hxg5
{[%clk 0:00:08.8]} 36... fxg2+ {[%clk 0:00:54.7]} 37. Kh2 {[%clk 0:00:08.5]}
37... Qf4+ {[%clk 0:00:53.9]} 38. Kh3 {[%clk 0:00:08.3]} 38... Bc8+ {[%clk
0:00:53.4]} 0-1

[Event "Betsys MČR v online bleskovém šachu 2021"]
[Site "Chess.com"]
[Date "2021.04.17"]
[Round "10"]
[White "Sfreedom01"]
[Black "dino5517"]
[Result "0-1"]
[WhiteElo "1336"]
[BlackElo "1395"]
[TimeControl "180+1"]
[EndTime "10:40:11 PDT"]
[Termination "Uživatel dino5517 zvítězil matem"]

1. e4 {[%clk 0:03:00.9]} 1... e5 {[%clk 0:02:59.6]} 2. Nf3 {[%clk 0:03:01.2]}
2... Nf6 {[%clk 0:02:59.2]} 3. Nc3 {[%clk 0:03:00.1]} 3... Bc5 {[%clk
0:02:57.5]} 4. Bc4 {[%clk 0:02:59.8]} 4... Nc6 {[%clk 0:02:55.5]} 5. O-O {[%clk
0:02:59.6]} 5... d6 {[%clk 0:02:53.6]} 6. d3 {[%clk 0:02:59.8]} 6... Be6 {[%clk
0:02:50.8]} 7. Bxe6 {[%clk 0:02:57.5]} 7... fxe6 {[%clk 0:02:51.1]} 8. Qe2
{[%clk 0:02:55.1]} 8... Qe7 {[%clk 0:02:48.3]} 9. Be3 {[%clk 0:02:54.9]} 9...
Bxe3 {[%clk 0:02:44.5]} 10. fxe3 {[%clk 0:02:52.2]} 10... O-O-O {[%clk
0:02:42.8]} 11. a3 {[%clk 0:02:50.9]} 11... h5 {[%clk 0:02:40.4]} 12. b4 {[%clk
0:02:50.8]} 12... h4 {[%clk 0:02:38.7]} 13. h3 {[%clk 0:02:48.8]} 13... Rdg8
{[%clk 0:02:31.4]} 14. Kh2 {[%clk 0:02:48.4]} 14... g5 {[%clk 0:02:31.4]} 15. b5
{[%clk 0:02:28.1]} 15... Nb8 {[%clk 0:02:25.9]} 16. Ng1 {[%clk 0:02:20.1]} 16...
Rg7 {[%clk 0:02:07.4]} 17. Rf2 {[%clk 0:02:08.6]} 17... g4 {[%clk 0:02:05.7]}
18. hxg4 {[%clk 0:01:55.9]} 18... Nxg4+ {[%clk 0:02:03.7]} 19. Kh1 {[%clk
0:01:52.1]} 19... Nxf2+ {[%clk 0:01:48.9]} 20. Qxf2 {[%clk 0:01:52.1]} 20... Qg5
{[%clk 0:01:40.8]} 21. Nh3 {[%clk 0:01:41.4]} 21... Qh6 {[%clk 0:01:23.5]} 22.
Rg1 {[%clk 0:01:39.5]} 22... Nd7 {[%clk 0:01:20.4]} 23. Ne2 {[%clk 0:01:36.5]}
23... Nf6 {[%clk 0:01:20.2]} 24. d4 {[%clk 0:01:31]} 24... Ng4 {[%clk
0:01:13.2]} 25. Qf3 {[%clk 0:01:25.6]} 25... Nxe3 {[%clk 0:01:04.2]} 26. dxe5
{[%clk 0:01:12.4]} 26... dxe5 {[%clk 0:01:03.3]} 27. g3 {[%clk 0:00:55.9]} 27...
hxg3 {[%clk 0:01:00.7]} 28. Rxg3 {[%clk 0:00:49.1]} 28... Rxg3 {[%clk
0:00:55.6]} 29. Qxg3 {[%clk 0:00:45.5]} 29... Nxc2 {[%clk 0:00:48.2]} 30. Kg2
{[%clk 0:00:41.2]} 30... Nd4 {[%clk 0:00:42.7]} 31. Nxd4 {[%clk 0:00:39.9]}
31... exd4 {[%clk 0:00:42.9]} 32. Qe5 {[%clk 0:00:35.8]} 32... Qxh3+ {[%clk
0:00:33.1]} 33. Kf2 {[%clk 0:00:35.3]} 33... Qe3+ {[%clk 0:00:31.1]} 34. Kg2
{[%clk 0:00:34.6]} 34... Rg8+ {[%clk 0:00:30.8]} 35. Kh2 {[%clk 0:00:30.8]}
35... Qg1+ {[%clk 0:00:29.8]} 36. Kh3 {[%clk 0:00:30.1]} 36... Qg2+ {[%clk
0:00:25]} 37. Kh4 {[%clk 0:00:28.6]} 37... Qg4# {[%clk 0:00:24.7]} 0-1

[Event "Betsys MČR v online bleskovém šachu 2021"]
[Site "Chess.com"]
[Date "2021.04.17"]
[Round "10"]
[White "Filipdol"]
[Black "PremetFugas"]
[Result "0-1"]
[WhiteElo "1899"]
[BlackElo "2116"]
[TimeControl "180+1"]
[EndTime "10:40:12 PDT"]
[Termination "Uživatel PremetFugas zvítězil matem"]

1. e4 {[%clk 0:03:00.9]} 1... c5 {[%clk 0:02:52.1]} 2. Nc3 {[%clk 0:03:00.4]}
2... d6 {[%clk 0:02:49.6]} 3. f4 {[%clk 0:03:00.3]} 3... Nc6 {[%clk 0:02:48.3]}
4. Nf3 {[%clk 0:03:00.5]} 4... g6 {[%clk 0:02:48]} 5. Bb5 {[%clk 0:03:00.3]}
5... Bd7 {[%clk 0:02:46.5]} 6. d3 {[%clk 0:02:59.2]} 6... Bg7 {[%clk 0:02:46.1]}
7. O-O {[%clk 0:02:57.8]} 7... a6 {[%clk 0:02:43.2]} 8. Bxc6 {[%clk 0:02:58]}
8... Bxc6 {[%clk 0:02:43]} 9. Be3 {[%clk 0:02:58.7]} 9... e6 {[%clk 0:02:35.7]}
10. Qe1 {[%clk 0:02:54.1]} 10... Ne7 {[%clk 0:02:32.7]} 11. Qf2 {[%clk 0:02:47]}
11... b6 {[%clk 0:02:29]} 12. d4 {[%clk 0:02:24.2]} 12... Qc7 {[%clk 0:02:07.6]}
13. Rad1 {[%clk 0:02:12.3]} 13... O-O-O {[%clk 0:01:58.2]} 14. e5 {[%clk
0:01:46.8]} 14... Nf5 {[%clk 0:01:38.2]} 15. dxc5 {[%clk 0:01:37]} 15... dxc5
{[%clk 0:01:36.2]} 16. g4 {[%clk 0:01:31.6]} 16... Nxe3 {[%clk 0:01:33.1]} 17.
Qxe3 {[%clk 0:01:32.5]} 17... Qb7 {[%clk 0:01:28.7]} 18. Ng5 {[%clk 0:01:12.6]}
18... h6 {[%clk 0:01:18]} 19. Nge4 {[%clk 0:01:11.3]} 19... Kb8 {[%clk
0:01:12.2]} 20. Nd6 {[%clk 0:01:08.2]} 20... Qc7 {[%clk 0:01:11.2]} 21. Nce4
{[%clk 0:01:03.5]} 21... Ba8 {[%clk 0:01:09.8]} 22. c4 {[%clk 0:00:58.4]} 22...
Rhf8 {[%clk 0:01:04.2]} 23. Rd3 {[%clk 0:00:24.2]} 23... g5 {[%clk 0:00:57.5]}
24. Ra3 {[%clk 0:00:22.4]} 24... gxf4 {[%clk 0:00:51]} 25. Qxf4 {[%clk
0:00:20.6]} 25... f5 {[%clk 0:00:45.9]} 26. gxf5 {[%clk 0:00:15.1]} 26... exf5
{[%clk 0:00:44.3]} 27. Nc3 {[%clk 0:00:12.2]} 27... Bxe5 {[%clk 0:00:35.9]} 28.
Qxe5 {[%clk 0:00:10.8]} 28... Rxd6 {[%clk 0:00:36]} 29. Rxa6 {[%clk 0:00:09.2]}
29... Rg6+ {[%clk 0:00:34.7]} 30. Qg3 {[%clk 0:00:04.4]} 30... Rxg3+ {[%clk
0:00:34]} 31. hxg3 {[%clk 0:00:05.3]} 31... Qxg3# {[%clk 0:00:33.9]} 0-1

[Event "Betsys MČR v online bleskovém šachu 2021"]
[Site "Chess.com"]
[Date "2021.04.17"]
[Round "10"]
[White "CzechMerlin"]
[Black "vozmenmarcel"]
[Result "0-1"]
[WhiteElo "1659"]
[BlackElo "1869"]
[TimeControl "180+1"]
[EndTime "10:40:13 PDT"]
[Termination "Uživatel vozmenmarcel zvítězil po vzdání soupeře"]

1. d4 {[%clk 0:03:00.9]} 1... Nf6 {[%clk 0:02:58.6]} 2. c4 {[%clk 0:03:00.8]}
2... g6 {[%clk 0:02:57.5]} 3. Nc3 {[%clk 0:03:01.1]} 3... d5 {[%clk 0:02:56.4]}
4. Bg5 {[%clk 0:03:00.5]} 4... c6 {[%clk 0:02:53.3]} 5. c5 {[%clk 0:02:59.4]}
5... Ne4 {[%clk 0:02:51.4]} 6. Nxe4 {[%clk 0:02:58.3]} 6... dxe4 {[%clk
0:02:51.4]} 7. e3 {[%clk 0:02:55.7]} 7... Bg7 {[%clk 0:02:49.9]} 8. Bc4 {[%clk
0:02:47.5]} 8... Qa5+ {[%clk 0:02:36.6]} 9. Kf1 {[%clk 0:02:40.1]} 9... O-O
{[%clk 0:02:31.2]} 10. Ne2 {[%clk 0:02:39.8]} 10... e6 {[%clk 0:02:27.7]} 11.
Nc3 {[%clk 0:02:32.9]} 11... f5 {[%clk 0:02:23.8]} 12. Qb3 {[%clk 0:02:25.5]}
12... Re8 {[%clk 0:02:21.7]} 13. h3 {[%clk 0:02:21.9]} 13... b5 {[%clk
0:02:17.9]} 14. Be2 {[%clk 0:01:56.1]} 14... h6 {[%clk 0:02:15.3]} 15. Bf4
{[%clk 0:01:53.2]} 15... Kh7 {[%clk 0:02:13.9]} 16. Kg1 {[%clk 0:01:47.3]} 16...
Nd7 {[%clk 0:02:08.3]} 17. Kh2 {[%clk 0:01:46.2]} 17... e5 {[%clk 0:01:55.7]}
18. Bg3 {[%clk 0:01:41.1]} 18... exd4 {[%clk 0:01:49.3]} 19. exd4 {[%clk
0:01:38.4]} 19... Nf6 {[%clk 0:01:48.6]} 20. Be5 {[%clk 0:01:27.6]} 20... Be6
{[%clk 0:01:47.2]} 21. Qc2 {[%clk 0:01:22]} 21... Rad8 {[%clk 0:01:37.9]} 22.
Rhd1 {[%clk 0:01:20.5]} 22... Bd5 {[%clk 0:01:09.9]} 23. a3 {[%clk 0:01:17.8]}
23... Re6 {[%clk 0:01:06.3]} 24. b4 {[%clk 0:01:16.9]} 24... Qa6 {[%clk
0:01:04.5]} 25. a4 {[%clk 0:01:16.2]} 25... Qb7 {[%clk 0:00:45.1]} 26. axb5
{[%clk 0:01:13]} 26... cxb5 {[%clk 0:00:45.1]} 27. Ra5 {[%clk 0:01:11.1]} 27...
a6 {[%clk 0:00:44.5]} 28. Rda1 {[%clk 0:01:10.2]} 28... Nd7 {[%clk 0:00:42.1]}
29. Bxg7 {[%clk 0:00:56.4]} 29... Kxg7 {[%clk 0:00:38]} 30. Nxd5 {[%clk
0:00:23.9]} 30... Qxd5 {[%clk 0:00:36.3]} 31. Rxa6 {[%clk 0:00:23.7]} 31... Rxa6
{[%clk 0:00:35.7]} 32. Rxa6 {[%clk 0:00:23.2]} 32... Qxd4 {[%clk 0:00:35.5]} 33.
Bxb5 {[%clk 0:00:20]} 33... Nf6 {[%clk 0:00:34.7]} 34. Qb2 {[%clk 0:00:13.7]}
34... Qxb2 {[%clk 0:00:32.4]} 0-1

[Event "Betsys MČR v online bleskovém šachu 2021"]
[Site "Chess.com"]
[Date "2021.04.17"]
[Round "10"]
[White "Daffac"]
[Black "milanpetras"]
[Result "1-0"]
[WhiteElo "2086"]
[BlackElo "1844"]
[TimeControl "180+1"]
[EndTime "10:40:14 PDT"]
[Termination "Uživatel Daffac zvítězil na čas"]

1. Nf3 {[%clk 0:03:00.9]} 1... Nf6 {[%clk 0:02:56.6]} 2. d4 {[%clk 0:02:57.1]}
2... g6 {[%clk 0:02:51.4]} 3. g3 {[%clk 0:02:56.2]} 3... Bg7 {[%clk 0:02:51]} 4.
Bg2 {[%clk 0:02:57.1]} 4... O-O {[%clk 0:02:50.7]} 5. O-O {[%clk 0:02:58]} 5...
d6 {[%clk 0:02:50.1]} 6. a4 {[%clk 0:02:58.1]} 6... Nbd7 {[%clk 0:02:47.3]} 7.
Re1 {[%clk 0:02:55.7]} 7... e5 {[%clk 0:02:46.7]} 8. e4 {[%clk 0:02:52.1]} 8...
Re8 {[%clk 0:02:38]} 9. Nc3 {[%clk 0:02:50.1]} 9... exd4 {[%clk 0:02:32.6]} 10.
Nxd4 {[%clk 0:02:50]} 10... a6 {[%clk 0:02:25]} 11. h3 {[%clk 0:02:48.8]} 11...
Nf8 {[%clk 0:02:11.2]} 12. a5 {[%clk 0:02:45.3]} 12... Ne6 {[%clk 0:02:06.5]}
13. Be3 {[%clk 0:02:43.9]} 13... Nc5 {[%clk 0:01:55.4]} 14. f3 {[%clk
0:02:35.7]} 14... Ne6 {[%clk 0:01:41.3]} 15. Kh2 {[%clk 0:02:35.4]} 15... Nxd4
{[%clk 0:01:40.1]} 16. Bxd4 {[%clk 0:02:36.3]} 16... Be6 {[%clk 0:01:27.3]} 17.
Qd2 {[%clk 0:02:35.9]} 17... Qd7 {[%clk 0:01:25.8]} 18. Ne2 {[%clk 0:02:31.5]}
18... h5 {[%clk 0:01:22.2]} 19. Qc3 {[%clk 0:02:28]} 19... Qe7 {[%clk 0:01:17]}
20. Nf4 {[%clk 0:02:19.3]} 20... Rec8 {[%clk 0:01:11.9]} 21. e5 {[%clk
0:02:09.1]} 21... Ne8 {[%clk 0:00:48.2]} 22. Nxe6 {[%clk 0:01:59.5]} 22... fxe6
{[%clk 0:00:37.3]} 23. exd6 {[%clk 0:01:59.4]} 23... cxd6 {[%clk 0:00:35.8]} 24.
Qd3 {[%clk 0:01:54]} 24... e5 {[%clk 0:00:33.9]} 25. Bb6 {[%clk 0:01:49.1]}
25... Qf6 {[%clk 0:00:30.3]} 26. Qd5+ {[%clk 0:01:42.6]} 26... Kh7 {[%clk
0:00:28.8]} 27. c3 {[%clk 0:01:41]} 27... Rc6 {[%clk 0:00:27.4]} 28. Qd3 {[%clk
0:01:36.5]} 28... Qf5 {[%clk 0:00:26.5]} 29. Rad1 {[%clk 0:01:21.1]} 29... Rac8
{[%clk 0:00:20.9]} 30. f4 {[%clk 0:01:13.8]} 30... exf4 {[%clk 0:00:19]} 31.
Qxf5 {[%clk 0:01:07.9]} 31... gxf5 {[%clk 0:00:18.5]} 32. Bxc6 {[%clk
0:01:06.6]} 32... bxc6 {[%clk 0:00:15.5]} 33. gxf4 {[%clk 0:01:03.9]} 33... Nf6
{[%clk 0:00:14.4]} 34. Rxd6 {[%clk 0:01:00.8]} 34... Nd5 {[%clk 0:00:12.6]} 35.
Rd7 {[%clk 0:00:57.1]} 35... Rb8 {[%clk 0:00:09]} 36. Rg1 {[%clk 0:00:49]} 36...
Rg8 {[%clk 0:00:05.9]} 37. Bd4 {[%clk 0:00:48.7]} 1-0

[Event "Betsys MČR v online bleskovém šachu 2021"]
[Site "Chess.com"]
[Date "2021.04.17"]
[Round "10"]
[White "vit_rosenbaum"]
[Black "pedroholly22"]
[Result "0-1"]
[WhiteElo "2257"]
[BlackElo "2403"]
[TimeControl "180+1"]
[EndTime "10:40:15 PDT"]
[Termination "Uživatel pedroholly22 zvítězil po vzdání soupeře"]

1. e4 {[%clk 0:03:00.9]} 1... c5 {[%clk 0:02:58]} 2. Nc3 {[%clk 0:02:59.9]} 2...
a6 {[%clk 0:02:57.4]} 3. g3 {[%clk 0:02:59.8]} 3... b5 {[%clk 0:02:57.2]} 4. Bg2
{[%clk 0:03:00.1]} 4... Bb7 {[%clk 0:02:57.8]} 5. Nge2 {[%clk 0:02:58.8]} 5...
e6 {[%clk 0:02:58.4]} 6. O-O {[%clk 0:02:57.4]} 6... Nf6 {[%clk 0:02:52.3]} 7.
e5 {[%clk 0:02:44.8]} 7... Bxg2 {[%clk 0:02:37.4]} 8. Kxg2 {[%clk 0:02:44.3]}
8... Ng4 {[%clk 0:02:24.8]} 9. d4 {[%clk 0:02:44.1]} 9... cxd4 {[%clk
0:02:06.9]} 10. Qxd4 {[%clk 0:02:43.1]} 10... h5 {[%clk 0:02:05.5]} 11. h3
{[%clk 0:02:36.2]} 11... Nc6 {[%clk 0:02:04.8]} 12. Qe4 {[%clk 0:02:28.7]} 12...
Ngxe5 {[%clk 0:02:01.7]} 13. Bf4 {[%clk 0:02:23.5]} 13... d5 {[%clk 0:01:45.4]}
14. Qe3 {[%clk 0:02:16.9]} 14... Nc4 {[%clk 0:01:07.8]} 15. Qf3 {[%clk
0:02:13.2]} 15... Be7 {[%clk 0:01:05.1]} 16. b3 {[%clk 0:02:06.8]} 16... N4e5
{[%clk 0:01:03.4]} 17. Qe3 {[%clk 0:01:51.3]} 17... Ng6 {[%clk 0:01:01.3]} 18.
Rad1 {[%clk 0:01:47.3]} 18... O-O {[%clk 0:00:58.2]} 19. Qf3 {[%clk 0:01:29.8]}
19... h4 {[%clk 0:00:51.6]} 20. g4 {[%clk 0:01:28.3]} 20... Bf6 {[%clk
0:00:34.6]} 21. Rfe1 {[%clk 0:01:19.4]} 21... Qa5 {[%clk 0:00:32]} 22. Bd2
{[%clk 0:01:14.3]} 22... Qc7 {[%clk 0:00:26.1]} 23. g5 {[%clk 0:01:05.6]} 23...
Be7 {[%clk 0:00:24.2]} 24. Qh5 {[%clk 0:01:04.1]} 24... b4 {[%clk 0:00:20.1]}
25. Na4 {[%clk 0:00:58.2]} 25... Rac8 {[%clk 0:00:19.9]} 26. Be3 {[%clk
0:00:49.3]} 26... Rb8 {[%clk 0:00:18]} 27. Nc5 {[%clk 0:00:40.2]} 27... d4
{[%clk 0:00:16]} 28. Nxd4 {[%clk 0:00:24.9]} 28... Nxd4 {[%clk 0:00:14.1]} 29.
Bxd4 {[%clk 0:00:19.7]} 29... Nf4+ {[%clk 0:00:13.5]} 0-1